[Event "*** Titled Tuesday Blitz"]
[Site "Chess.com"]
[Date "2018.04.03"]
[Round "2"]
[White "Doraemon7"]
[Black "amiralfio"]
[Result "1-0"]
[WhiteElo "2426"]
[BlackElo "2264"]
[TimeControl "180+2"]
[EndTime "13:19:12 PDT"]
[Termination "Doraemon7 won by resignation"]

1. d4 {[%clk 0:03:01.9]} 1... Nf6 {[%clk 0:03:00.1]} 2. c4 {[%clk 0:03:00.1]}
2... g6 {[%clk 0:03:01.3]} 3. Nc3 {[%clk 0:02:57.7]} 3... d5 {[%clk 0:03:02.6]}
4. cxd5 {[%clk 0:02:56.6]} 4... Nxd5 {[%clk 0:03:04.1]} 5. e4 {[%clk 0:02:58.2]}
5... Nxc3 {[%clk 0:03:05.3]} 6. bxc3 {[%clk 0:02:59.9]} 6... Bg7 {[%clk
0:03:06.6]} 7. Qa4+ {[%clk 0:03:01.4]} 7... Nd7 {[%clk 0:03:05.6]} 8. Nf3 {[%clk
0:03:01.3]} 8... O-O {[%clk 0:03:07]} 9. Be2 {[%clk 0:03:01.7]} 9... c5 {[%clk
0:03:08.4]} 10. O-O {[%clk 0:03:01.7]} 10... cxd4 {[%clk 0:03:09.9]} 11. cxd4
{[%clk 0:03:03.4]} 11... Nb6 {[%clk 0:03:11.4]} 12. Qd1 {[%clk 0:03:01.3]} 12...
Bg4 {[%clk 0:03:11.3]} 13. Be3 {[%clk 0:03:02.3]} 13... Rc8 {[%clk 0:03:10.9]}
14. Qd3 {[%clk 0:02:40.1]} 14... Nc4 {[%clk 0:03:03.6]} 15. Rab1 {[%clk
0:02:21.7]} 15... Bxf3 {[%clk 0:02:50.5]} 16. Bxf3 {[%clk 0:02:12.8]} 16... Ne5
{[%clk 0:02:47.5]} 17. Qd1 {[%clk 0:01:57.2]} 17... Nxf3+ {[%clk 0:02:46]} 18.
Qxf3 {[%clk 0:01:46.9]} 18... Qd7 {[%clk 0:02:43.9]} 19. e5 {[%clk 0:01:35.9]}
19... b6 {[%clk 0:02:40.2]} 20. h4 {[%clk 0:01:25.1]} 20... h5 {[%clk
0:02:32.6]} 21. Rbc1 {[%clk 0:01:16.9]} 21... Qa4 {[%clk 0:02:17.8]} 22. Qb7
{[%clk 0:01:00.6]} 22... Qxa2 {[%clk 0:02:09.2]} 23. Rxc8 {[%clk 0:00:59.7]} 1-0

[Event "*** Titled Tuesday Blitz"]
[Site "Chess.com"]
[Date "2018.04.03"]
[Round "2"]
[White "Caisachess"]
[Black "pedromartinez91"]
[Result "0-1"]
[WhiteElo "2212"]
[BlackElo "2365"]
[TimeControl "180+2"]
[EndTime "13:19:13 PDT"]
[Termination "pedromartinez91 won by resignation"]

1. e4 {[%clk 0:03:01.9]} 1... e6 {[%clk 0:02:59]} 2. d4 {[%clk 0:03:01.6]} 2...
d5 {[%clk 0:03:00.2]} 3. Bd3 {[%clk 0:03:03.1]} 3... dxe4 {[%clk 0:02:57.8]} 4.
Bxe4 {[%clk 0:03:05]} 4... Nf6 {[%clk 0:02:59.2]} 5. Bf3 {[%clk 0:03:06]} 5...
Nbd7 {[%clk 0:03:01.1]} 6. Ne2 {[%clk 0:03:06.2]} 6... Bd6 {[%clk 0:03:02.6]} 7.
Nbc3 {[%clk 0:03:05.9]} 7... O-O {[%clk 0:03:04]} 8. O-O {[%clk 0:03:04.9]} 8...
e5 {[%clk 0:03:05.5]} 9. g3 {[%clk 0:03:06.1]} 9... exd4 {[%clk 0:03:01.9]} 10.
Nxd4 {[%clk 0:03:06.4]} 10... Ne5 {[%clk 0:03:03.4]} 11. Bg2 {[%clk 0:03:07.2]}
11... Bg4 {[%clk 0:03:04.5]} 12. f3 {[%clk 0:02:52.8]} 12... Bd7 {[%clk
0:02:52.9]} 13. Bg5 {[%clk 0:02:49.2]} 13... Bc5 {[%clk 0:02:41]} 14. Ne4 {[%clk
0:02:44.5]} 14... Nxe4 {[%clk 0:02:27.3]} 15. Bxd8 {[%clk 0:02:43]} 15... Raxd8
{[%clk 0:02:29.2]} 16. fxe4 {[%clk 0:02:42.7]} 16... Bg4 {[%clk 0:02:28.6]} 17.
Qc1 {[%clk 0:02:35.1]} 17... Bxd4+ {[%clk 0:02:18.9]} 18. Kh1 {[%clk 0:02:33.2]}
18... Be6 {[%clk 0:02:20.1]} 19. c3 {[%clk 0:02:28.1]} 19... Bb6 {[%clk
0:02:18.2]} 20. Qc2 {[%clk 0:02:23.4]} 20... Ng4 {[%clk 0:02:12.4]} 21. Qa4
{[%clk 0:02:07.7]} 21... Nf2+ {[%clk 0:02:09.6]} 22. Kg1 {[%clk 0:01:55.1]}
22... Nd3+ {[%clk 0:02:09.1]} 23. Kh1 {[%clk 0:01:54.8]} 23... Nxb2 {[%clk
0:02:09.2]} 24. Qc2 {[%clk 0:01:52]} 24... Nc4 {[%clk 0:02:10.1]} 25. e5 {[%clk
0:01:36.2]} 25... Ne3 {[%clk 0:02:08.8]} 26. Qe4 {[%clk 0:01:37]} 26... Bd5
{[%clk 0:02:04.6]} 0-1

[Event "*** Titled Tuesday Blitz"]
[Site "Chess.com"]
[Date "2018.04.03"]
[Round "2"]
[White "PrinceMurad09"]
[Black "volodja49"]
[Result "0-1"]
[WhiteElo "2328"]
[BlackElo "2421"]
[TimeControl "180+2"]
[EndTime "13:19:23 PDT"]
[Termination "volodja49 won by resignation"]

1. e4 {[%clk 0:03:01.9]} 1... e6 {[%clk 0:03:00.8]} 2. d4 {[%clk 0:03:01.1]}
2... d5 {[%clk 0:03:02.7]} 3. exd5 {[%clk 0:03:02.1]} 3... exd5 {[%clk
0:03:03.6]} 4. Nf3 {[%clk 0:03:03.3]} 4... c6 {[%clk 0:03:03]} 5. c4 {[%clk
0:03:04.5]} 5... Nf6 {[%clk 0:03:03.4]} 6. Nc3 {[%clk 0:03:05.8]} 6... Be7
{[%clk 0:03:04.4]} 7. Be2 {[%clk 0:03:07.1]} 7... O-O {[%clk 0:03:05.1]} 8. O-O
{[%clk 0:03:08.3]} 8... dxc4 {[%clk 0:03:06]} 9. Bxc4 {[%clk 0:03:09.1]} 9...
Nbd7 {[%clk 0:03:07.9]} 10. Re1 {[%clk 0:03:08]} 10... Nb6 {[%clk 0:03:09.1]}
11. Bb3 {[%clk 0:03:09.2]} 11... Nfd5 {[%clk 0:03:07.3]} 12. Ne5 {[%clk
0:03:09.1]} 12... Be6 {[%clk 0:03:05.9]} 13. h3 {[%clk 0:03:09.1]} 13... Re8
{[%clk 0:03:06.6]} 14. Bc2 {[%clk 0:03:04.7]} 14... Qc7 {[%clk 0:03:05.7]} 15.
Qd3 {[%clk 0:03:03.3]} 15... g6 {[%clk 0:03:06.5]} 16. Nxg6 {[%clk 0:02:54.7]}
16... hxg6 {[%clk 0:02:29.5]} 17. Rxe6 {[%clk 0:02:54.5]} 17... Bf8 {[%clk
0:02:08.9]} 18. Rxe8 {[%clk 0:02:52.2]} 18... Rxe8 {[%clk 0:02:10.8]} 19. Bd2
{[%clk 0:02:51.7]} 19... Nb4 {[%clk 0:02:11.9]} 20. Qf3 {[%clk 0:02:32]} 20...
Nxc2 {[%clk 0:02:11.6]} 21. Rc1 {[%clk 0:02:33.2]} 21... Nxd4 {[%clk 0:02:11.9]}
22. Qd3 {[%clk 0:02:34.4]} 22... Bg7 {[%clk 0:02:10.5]} 23. Be3 {[%clk
0:02:35.3]} 23... Rd8 {[%clk 0:02:08.4]} 24. Qe4 {[%clk 0:02:32.9]} 24... Nf5
{[%clk 0:01:48.6]} 25. Bf4 {[%clk 0:02:33.1]} 25... Qe7 {[%clk 0:01:48]} 26. Qf3
{[%clk 0:02:30.8]} 26... Nd4 {[%clk 0:01:47.1]} 27. Qg3 {[%clk 0:02:29]} 27...
Nd5 {[%clk 0:01:40.8]} 28. Bg5 {[%clk 0:02:27.8]} 28... f6 {[%clk 0:01:11.1]}
0-1

[Event "*** Titled Tuesday Blitz"]
[Site "Chess.com"]
[Date "2018.04.03"]
[Round "2"]
[White "FitnessBen"]
[Black "Danny_The_Donkey"]
[Result "1/2-1/2"]
[WhiteElo "2509"]
[BlackElo "2653"]
[TimeControl "180+2"]
[EndTime "13:19:38 PDT"]
[Termination "Game drawn by agreement"]

1. e4 {[%clk 0:03:01.9]} 1... e6 {[%clk 0:02:57.8]} 2. d4 {[%clk 0:03:01.9]}
2... d5 {[%clk 0:02:58.3]} 3. Nd2 {[%clk 0:03:02.5]} 3... c5 {[%clk 0:02:58.4]}
4. exd5 {[%clk 0:03:03.3]} 4... Qxd5 {[%clk 0:02:59.8]} 5. dxc5 {[%clk
0:03:04.6]} 5... Qxc5 {[%clk 0:02:56.9]} 6. Ngf3 {[%clk 0:03:05.3]} 6... Nf6
{[%clk 0:02:57.5]} 7. Bd3 {[%clk 0:03:06.1]} 7... Nbd7 {[%clk 0:02:58]} 8. O-O
{[%clk 0:03:07.3]} 8... Qc7 {[%clk 0:02:59]} 9. Nb3 {[%clk 0:03:08.8]} 9... Be7
{[%clk 0:02:59]} 10. c3 {[%clk 0:03:08.8]} 10... O-O {[%clk 0:02:59.7]} 11. Bc2
{[%clk 0:03:09.7]} 11... a6 {[%clk 0:02:58.5]} 12. Bg5 {[%clk 0:03:10.2]} 12...
b5 {[%clk 0:02:58]} 13. Bh4 {[%clk 0:03:04.7]} 13... Bb7 {[%clk 0:02:57.8]} 14.
Bg3 {[%clk 0:03:05.5]} 14... Qb6 {[%clk 0:02:56.2]} 15. Qe2 {[%clk 0:03:05.4]}
15... Rfd8 {[%clk 0:02:55]} 16. a4 {[%clk 0:03:04.7]} 16... bxa4 {[%clk
0:02:47.7]} 17. Rxa4 {[%clk 0:03:06.6]} 17... Bc6 {[%clk 0:02:48]} 18. Rd4
{[%clk 0:03:02.7]} 18... Nc5 {[%clk 0:02:41.9]} 19. Nxc5 {[%clk 0:02:58.5]}
19... Bxc5 {[%clk 0:02:43.8]} 20. Rxd8+ {[%clk 0:02:55.1]} 20... Rxd8 {[%clk
0:02:44.5]} 21. b4 {[%clk 0:02:53.3]} 21... Be7 {[%clk 0:02:32.7]} 22. Rd1
{[%clk 0:02:53.1]} 22... Rc8 {[%clk 0:02:28]} 23. Bb3 {[%clk 0:02:40.7]} 23...
a5 {[%clk 0:02:04.1]} 24. Nd4 {[%clk 0:02:16]} 24... Bd7 {[%clk 0:01:37.5]} 25.
bxa5 {[%clk 0:01:49.3]} 25... Qxa5 {[%clk 0:01:27.3]} 26. Nxe6 {[%clk
0:01:30.4]} 1/2-1/2

[Event "*** Titled Tuesday Blitz"]
[Site "Chess.com"]
[Date "2018.04.03"]
[Round "2"]
[White "guillembaches"]
[Black "nOcHeaTiNgKiD"]
[Result "1-0"]
[WhiteElo "2259"]
[BlackElo "2377"]
[TimeControl "180+2"]
[EndTime "13:19:48 PDT"]
[Termination "guillembaches won by resignation"]

1. d4 {[%clk 0:03:01.8]} 1... Nf6 {[%clk 0:02:59.7]} 2. Bf4 {[%clk 0:02:58.2]}
2... d5 {[%clk 0:02:59.4]} 3. e3 {[%clk 0:02:58.7]} 3... g6 {[%clk 0:02:56.5]}
4. Nc3 {[%clk 0:02:58.5]} 4... Bg7 {[%clk 0:02:56.8]} 5. h4 {[%clk 0:02:59.3]}
5... h5 {[%clk 0:02:56.4]} 6. Nf3 {[%clk 0:02:59.4]} 6... O-O {[%clk 0:02:53]}
7. Be2 {[%clk 0:02:59.3]} 7... c5 {[%clk 0:02:46.7]} 8. Nb5 {[%clk 0:02:56.9]}
8... Na6 {[%clk 0:02:45.3]} 9. c3 {[%clk 0:02:57.6]} 9... Ne4 {[%clk 0:02:31.7]}
10. O-O {[%clk 0:02:50.7]} 10... Bg4 {[%clk 0:02:31.3]} 11. a4 {[%clk
0:02:42.9]} 11... e6 {[%clk 0:02:28.2]} 12. Ng5 {[%clk 0:02:32.5]} 12... Bxe2
{[%clk 0:02:26.3]} 13. Qxe2 {[%clk 0:02:34.4]} 13... Qd7 {[%clk 0:02:18.2]} 14.
Nxe4 {[%clk 0:02:22.7]} 14... dxe4 {[%clk 0:02:14.8]} 15. Rad1 {[%clk
0:02:17.8]} 15... cxd4 {[%clk 0:02:12.7]} 16. exd4 {[%clk 0:02:17.9]} 16... f5
{[%clk 0:02:13]} 17. Be5 {[%clk 0:02:05.5]} 17... Bxe5 {[%clk 0:02:02.8]} 18.
dxe5 {[%clk 0:02:07.4]} 18... Qg7 {[%clk 0:02:03.9]} 19. f4 {[%clk 0:01:57.5]}
19... Qe7 {[%clk 0:01:34.8]} 20. Rd6 {[%clk 0:01:53]} 20... Nc5 {[%clk
0:01:31.7]} 21. Qc4 {[%clk 0:01:49.9]} 21... Rac8 {[%clk 0:01:20.6]} 22. Nxa7
{[%clk 0:01:50.2]} 22... Rc7 {[%clk 0:01:18.3]} 23. Nb5 {[%clk 0:01:44.5]} 23...
Rc6 {[%clk 0:01:18.1]} 24. Rxc6 {[%clk 0:01:26.2]} 24... bxc6 {[%clk 0:01:18.5]}
25. Nd4 {[%clk 0:01:27.2]} 25... Kf7 {[%clk 0:01:14.6]} 26. Nxc6 {[%clk
0:01:24.7]} 1-0

[Event "*** Titled Tuesday Blitz"]
[Site "Chess.com"]
[Date "2018.04.03"]
[Round "2"]
[White "lolo9292"]
[Black "SL0M"]
[Result "1-0"]
[WhiteElo "1769"]
[BlackElo "1694"]
[TimeControl "180+2"]
[EndTime "13:19:56 PDT"]
[Termination "lolo9292 won by resignation"]

1. e4 {[%clk 0:03:01.9]} 1... e6 {[%clk 0:02:55.5]} 2. d3 {[%clk 0:02:50]} 2...
d5 {[%clk 0:02:56.1]} 3. Nd2 {[%clk 0:02:51.3]} 3... Nf6 {[%clk 0:02:55.4]} 4.
Ngf3 {[%clk 0:02:51.8]} 4... c5 {[%clk 0:02:48.8]} 5. g3 {[%clk 0:02:52.7]} 5...
Be7 {[%clk 0:02:50.2]} 6. Bg2 {[%clk 0:02:53.4]} 6... O-O {[%clk 0:02:51.3]} 7.
O-O {[%clk 0:02:54.6]} 7... Nc6 {[%clk 0:02:52.9]} 8. Re1 {[%clk 0:02:55]} 8...
b5 {[%clk 0:02:50.9]} 9. e5 {[%clk 0:02:52.1]} 9... Nd7 {[%clk 0:02:50.9]} 10.
Nf1 {[%clk 0:02:53.2]} 10... a5 {[%clk 0:02:28.1]} 11. h4 {[%clk 0:02:54.2]}
11... f6 {[%clk 0:02:14.8]} 12. exf6 {[%clk 0:02:53.2]} 12... Nxf6 {[%clk
0:02:16.7]} 13. Ng5 {[%clk 0:02:52.8]} 13... e5 {[%clk 0:02:08.2]} 14. c4 {[%clk
0:02:52.5]} 14... h6 {[%clk 0:01:57.4]} 15. cxd5 {[%clk 0:02:51.6]} 15... Nxd5
{[%clk 0:01:36.7]} 16. Qb3 {[%clk 0:02:49.7]} 16... c4 {[%clk 0:01:12.9]} 17.
dxc4 {[%clk 0:02:49.7]} 17... Nd4 {[%clk 0:01:13.6]} 18. Qd3 {[%clk 0:02:47]}
18... hxg5 {[%clk 0:01:12.4]} 19. Bxd5+ {[%clk 0:02:41.9]} 19... Kh8 {[%clk
0:01:10.2]} 20. Bxa8 {[%clk 0:02:41.8]} 20... Bf5 {[%clk 0:00:59.1]} 21. Be4
{[%clk 0:02:41]} 21... bxc4 {[%clk 0:01:00.6]} 22. Qxc4 {[%clk 0:02:41.2]} 22...
Bxe4 {[%clk 0:00:57.8]} 23. Rxe4 {[%clk 0:02:42.5]} 23... Nf3+ {[%clk
0:00:55.4]} 24. Kg2 {[%clk 0:02:41.4]} 24... gxh4 {[%clk 0:00:57.3]} 25. Be3
{[%clk 0:02:23.4]} 25... Bg5 {[%clk 0:00:21.1]} 26. Bxg5 {[%clk 0:02:23.8]}
26... Qxg5 {[%clk 0:00:21.7]} 27. Rxh4+ {[%clk 0:02:24.7]} 27... Nxh4+ {[%clk
0:00:20.9]} 28. Qxh4+ {[%clk 0:02:26.1]} 28... Qxh4 {[%clk 0:00:22.5]} 29. gxh4
{[%clk 0:02:27.1]} 29... Rc8 {[%clk 0:00:21.4]} 30. Ne3 {[%clk 0:02:28]} 1-0

[Event "*** Titled Tuesday Blitz"]
[Site "Chess.com"]
[Date "2018.04.03"]
[Round "2"]
[White "Firouzja2003"]
[Black "lukas_111111"]
[Result "1-0"]
[WhiteElo "2752"]
[BlackElo "2534"]
[TimeControl "180+2"]
[EndTime "13:20:03 PDT"]
[Termination "Firouzja2003 won by resignation"]

1. d4 {[%clk 0:03:01.9]} 1... d5 {[%clk 0:02:59]} 2. c4 {[%clk 0:03:02.7]} 2...
e6 {[%clk 0:02:58.3]} 3. Nf3 {[%clk 0:03:03.6]} 3... Nf6 {[%clk 0:02:57.8]} 4.
g3 {[%clk 0:03:04.8]} 4... Bb4+ {[%clk 0:02:55.8]} 5. Nbd2 {[%clk 0:03:04]} 5...
O-O {[%clk 0:02:52.1]} 6. Bg2 {[%clk 0:03:04.9]} 6... dxc4 {[%clk 0:02:44.7]} 7.
Qc2 {[%clk 0:03:05.1]} 7... Nc6 {[%clk 0:02:07.6]} 8. Qxc4 {[%clk 0:03:02.7]}
8... Ne4 {[%clk 0:01:58.9]} 9. Qd3 {[%clk 0:02:26]} 9... Nxd2 {[%clk 0:01:47.3]}
10. Bxd2 {[%clk 0:02:27.9]} 10... Bxd2+ {[%clk 0:01:39]} 11. Qxd2 {[%clk
0:02:29.8]} 11... Qd6 {[%clk 0:01:20.4]} 12. Rc1 {[%clk 0:02:28.6]} 12... Rd8
{[%clk 0:01:15.2]} 13. Qc3 {[%clk 0:02:20]} 13... Bd7 {[%clk 0:01:11]} 14. O-O
{[%clk 0:02:19.7]} 14... Rac8 {[%clk 0:01:11.8]} 15. Rfd1 {[%clk 0:02:17.8]}
15... Be8 {[%clk 0:01:03.5]} 16. e3 {[%clk 0:02:09.3]} 16... f6 {[%clk
0:01:03.4]} 17. Nd2 {[%clk 0:02:08.3]} 17... Qe7 {[%clk 0:00:48.1]} 18. Ne4
{[%clk 0:02:06.3]} 18... Nb4 {[%clk 0:00:45.9]} 19. Qb3 {[%clk 0:02:01.7]} 19...
c6 {[%clk 0:00:37.5]} 20. Nc5 {[%clk 0:02:01.1]} 20... a5 {[%clk 0:00:31.2]} 21.
a3 {[%clk 0:01:55.4]} 21... Nd5 {[%clk 0:00:30.5]} 22. Qxb7 {[%clk 0:01:56.8]}
22... Qf8 {[%clk 0:00:22.5]} 23. Nxe6 {[%clk 0:01:56.8]} 1-0

[Event "*** Titled Tuesday Blitz"]
[Site "Chess.com"]
[Date "2018.04.03"]
[Round "2"]
[White "Tramontanaaa"]
[Black "DrHolmes13"]
[Result "0-1"]
[WhiteElo "2372"]
[BlackElo "2456"]
[TimeControl "180+2"]
[EndTime "13:20:03 PDT"]
[Termination "DrHolmes13 won by resignation"]

1. e4 {[%clk 0:03:01.9]} 1... c6 {[%clk 0:03:00.7]} 2. Nc3 {[%clk 0:03:00.1]}
2... d5 {[%clk 0:03:02.6]} 3. Nf3 {[%clk 0:03:00.7]} 3... Nf6 {[%clk 0:03:03.9]}
4. e5 {[%clk 0:02:58.1]} 4... Ne4 {[%clk 0:03:05]} 5. Ne2 {[%clk 0:02:58.6]}
5... Qb6 {[%clk 0:03:05.6]} 6. d4 {[%clk 0:02:59.8]} 6... e6 {[%clk 0:03:06.7]}
7. Ng3 {[%clk 0:02:59.3]} 7... c5 {[%clk 0:03:05.5]} 8. Bd3 {[%clk 0:02:56.1]}
8... Nxg3 {[%clk 0:03:03.9]} 9. hxg3 {[%clk 0:02:57.2]} 9... cxd4 {[%clk
0:03:02.9]} 10. Nxd4 {[%clk 0:02:55.6]} 10... Bc5 {[%clk 0:02:58.1]} 11. c3
{[%clk 0:02:56.4]} 11... Nc6 {[%clk 0:02:52.3]} 12. Nxc6 {[%clk 0:02:39]} 12...
Bxf2+ {[%clk 0:02:48.5]} 13. Kf1 {[%clk 0:02:40]} 13... bxc6 {[%clk 0:02:47.2]}
14. Qf3 {[%clk 0:02:24.2]} 14... Bc5 {[%clk 0:02:43.3]} 15. b4 {[%clk 0:02:22]}
15... Be7 {[%clk 0:02:42.3]} 16. Be3 {[%clk 0:02:15.5]} 16... Qc7 {[%clk
0:02:40.1]} 17. Bd4 {[%clk 0:02:16.8]} 17... a5 {[%clk 0:02:36.9]} 18. Rh5
{[%clk 0:02:01.7]} 18... axb4 {[%clk 0:02:34.3]} 19. cxb4 {[%clk 0:02:02.9]}
19... Bxb4 {[%clk 0:02:32.6]} 20. Bxh7 {[%clk 0:01:57]} 20... c5 {[%clk
0:02:24.3]} 21. Bb2 {[%clk 0:01:55.4]} 21... Ba6+ {[%clk 0:02:20.5]} 22. Kg1
{[%clk 0:01:55.7]} 22... O-O-O {[%clk 0:02:16.3]} 23. a3 {[%clk 0:01:51]} 23...
Ba5 {[%clk 0:02:15.6]} 24. Bc2 {[%clk 0:01:47.2]} 24... Rxh5 {[%clk 0:02:12.9]}
25. Qxh5 {[%clk 0:01:48.3]} 25... d4 {[%clk 0:02:08.7]} 26. Be4 {[%clk
0:01:40.7]} 26... d3 {[%clk 0:02:06.5]} 27. Rd1 {[%clk 0:01:34]} 27... c4 {[%clk
0:02:04.4]} 28. Bc1 {[%clk 0:01:27.8]} 28... d2 {[%clk 0:02:01.4]} 29. Bxd2
{[%clk 0:01:18.3]} 29... Bxd2 {[%clk 0:01:58.3]} 30. Qf3 {[%clk 0:01:04.9]}
30... Qb6+ {[%clk 0:01:52.5]} 31. Kh2 {[%clk 0:01:03.3]} 31... Rh8+ {[%clk
0:01:52.3]} 0-1

[Event "*** Titled Tuesday Blitz"]
[Site "Chess.com"]
[Date "2018.04.03"]
[Round "2"]
[White "Konavets"]
[Black "Kimster98"]
[Result "1-0"]
[WhiteElo "2770"]
[BlackElo "2602"]
[TimeControl "180+2"]
[EndTime "13:20:06 PDT"]
[Termination "Konavets won by resignation"]

1. d4 {[%clk 0:03:01.9]} 1... Nf6 {[%clk 0:03:00.6]} 2. Bf4 {[%clk 0:03:03.1]}
2... d5 {[%clk 0:03:00.5]} 3. e3 {[%clk 0:03:04.2]} 3... e6 {[%clk 0:03:02.1]}
4. Nf3 {[%clk 0:03:04.3]} 4... Bd6 {[%clk 0:03:03.7]} 5. Bg3 {[%clk 0:03:05.5]}
5... O-O {[%clk 0:03:01.1]} 6. Nbd2 {[%clk 0:03:06]} 6... c5 {[%clk 0:02:58.4]}
7. c3 {[%clk 0:03:07.2]} 7... b6 {[%clk 0:02:59.9]} 8. Qa4 {[%clk 0:03:04.3]}
8... a5 {[%clk 0:02:43.4]} 9. Ne5 {[%clk 0:03:02.9]} 9... Qc7 {[%clk 0:02:23.4]}
10. Bd3 {[%clk 0:03:02.1]} 10... Ba6 {[%clk 0:02:22]} 11. Bb1 {[%clk 0:03:03.3]}
11... Nbd7 {[%clk 0:02:15.2]} 12. f4 {[%clk 0:03:02.9]} 12... b5 {[%clk
0:02:00.6]} 13. Qc2 {[%clk 0:02:46.6]} 13... Bb7 {[%clk 0:01:58.1]} 14. Bh4
{[%clk 0:02:31]} 14... Ne4 {[%clk 0:01:57.1]} 15. Nxe4 {[%clk 0:02:32.1]} 15...
dxe4 {[%clk 0:01:57.4]} 16. O-O {[%clk 0:02:33.8]} 16... f5 {[%clk 0:01:44.1]}
17. Qb3 {[%clk 0:02:31.6]} 17... Bd5 {[%clk 0:01:37.4]} 18. Qxb5 {[%clk
0:02:32.4]} 18... Bxe5 {[%clk 0:01:38.2]} 19. fxe5 {[%clk 0:02:33.1]} 19... cxd4
{[%clk 0:01:39.6]} 20. cxd4 {[%clk 0:02:31.8]} 20... Rab8 {[%clk 0:01:32.4]} 21.
Qe2 {[%clk 0:02:32.3]} 21... Rfc8 {[%clk 0:01:22.5]} 22. Qf2 {[%clk 0:02:29.1]}
22... Bc4 {[%clk 0:01:05.6]} 23. Rc1 {[%clk 0:02:29.1]} 23... Qb7 {[%clk
0:01:06.9]} 24. b3 {[%clk 0:02:20.9]} 24... Bd3 {[%clk 0:01:08.1]} 25. Bxd3
{[%clk 0:02:19.7]} 25... exd3 {[%clk 0:01:10]} 26. Rxc8+ {[%clk 0:02:19.6]}
26... Rxc8 {[%clk 0:01:10.3]} 27. Rd1 {[%clk 0:02:21.5]} 27... Rc2 {[%clk
0:01:06.5]} 28. Qg3 {[%clk 0:02:17.3]} 28... Kf7 {[%clk 0:00:50.7]} 29. h3
{[%clk 0:02:13.3]} 29... h6 {[%clk 0:00:49.8]} 30. Rxd3 {[%clk 0:02:09.5]} 30...
Qe4 {[%clk 0:00:42.1]} 31. Rd1 {[%clk 0:02:10.2]} 31... g5 {[%clk 0:00:42.2]}
32. Bxg5 {[%clk 0:02:10.6]} 32... hxg5 {[%clk 0:00:44.1]} 33. Qxg5 {[%clk
0:02:12.1]} 33... Re2 {[%clk 0:00:45.5]} 34. Qh5+ {[%clk 0:02:10.7]} 1-0

[Event "*** Titled Tuesday Blitz"]
[Site "Chess.com"]
[Date "2018.04.03"]
[Round "2"]
[White "yobdc"]
[Black "Gattass"]
[Result "0-1"]
[WhiteElo "2075"]
[BlackElo "2195"]
[TimeControl "180+2"]
[EndTime "13:20:09 PDT"]
[Termination "Gattass won by resignation"]

1. d4 {[%clk 0:03:01.9]} 1... d5 {[%clk 0:03:00.1]} 2. c4 {[%clk 0:03:01.2]}
2... c6 {[%clk 0:03:01]} 3. Nf3 {[%clk 0:03:01.5]} 3... Nf6 {[%clk 0:03:02.1]}
4. Nc3 {[%clk 0:02:56.1]} 4... dxc4 {[%clk 0:03:01.8]} 5. a4 {[%clk 0:02:57.1]}
5... Bf5 {[%clk 0:03:01]} 6. Ne5 {[%clk 0:02:53.4]} 6... Nbd7 {[%clk 0:02:58.5]}
7. Nxc4 {[%clk 0:02:54.1]} 7... Qc7 {[%clk 0:02:59.1]} 8. g3 {[%clk 0:02:54.4]}
8... e5 {[%clk 0:02:59.6]} 9. dxe5 {[%clk 0:02:55.4]} 9... Nxe5 {[%clk 0:03:00]}
10. Bf4 {[%clk 0:02:56.7]} 10... Nfd7 {[%clk 0:03:00.4]} 11. Bg2 {[%clk
0:02:56.6]} 11... Be6 {[%clk 0:03:00.4]} 12. Nxe5 {[%clk 0:02:54.7]} 12... Nxe5
{[%clk 0:03:01.1]} 13. O-O {[%clk 0:02:52.9]} 13... Rd8 {[%clk 0:02:59]} 14. Qc1
{[%clk 0:02:53.1]} 14... f6 {[%clk 0:02:57]} 15. Ne4 {[%clk 0:02:22.5]} 15...
Be7 {[%clk 0:02:42.5]} 16. Nc5 {[%clk 0:02:20.9]} 16... Bd5 {[%clk 0:02:18.7]}
17. Bxd5 {[%clk 0:02:14.5]} 17... Rxd5 {[%clk 0:02:14.3]} 18. Ne6 {[%clk
0:02:14.9]} 18... Qd7 {[%clk 0:01:54.4]} 19. Nxg7+ {[%clk 0:02:10.3]} 19... Kf7
{[%clk 0:01:55]} 20. Bxe5 {[%clk 0:01:32.4]} 20... Rxe5 {[%clk 0:01:19.7]} 21.
Rd1 {[%clk 0:01:20.2]} 21... Qh3 {[%clk 0:01:05.9]} 22. Qc4+ {[%clk 0:01:11.4]}
22... Kxg7 {[%clk 0:01:04.5]} 23. Rd7 {[%clk 0:01:12.9]} 0-1

[Event "*** Titled Tuesday Blitz"]
[Site "Chess.com"]
[Date "2018.04.03"]
[Round "2"]
[White "Alopekos"]
[Black "vovachesss"]
[Result "0-1"]
[WhiteElo "2315"]
[BlackElo "2430"]
[TimeControl "180+2"]
[EndTime "13:20:35 PDT"]
[Termination "vovachesss won on time"]

1. e4 {[%clk 0:03:01.9]} 1... e5 {[%clk 0:02:59.9]} 2. Nf3 {[%clk 0:03:02.8]}
2... d5 {[%clk 0:02:57.9]} 3. exd5 {[%clk 0:02:51.8]} 3... e4 {[%clk 0:02:58.8]}
4. Qe2 {[%clk 0:02:48.8]} 4... Nf6 {[%clk 0:02:58.8]} 5. d3 {[%clk 0:02:50]}
5... Qxd5 {[%clk 0:02:58.4]} 6. Nbd2 {[%clk 0:02:50.3]} 6... Nc6 {[%clk
0:02:59]} 7. Nxe4 {[%clk 0:02:49.4]} 7... Be6 {[%clk 0:02:59.8]} 8. Bg5 {[%clk
0:02:23]} 8... Be7 {[%clk 0:02:58.5]} 9. Nxf6+ {[%clk 0:02:01.8]} 9... gxf6
{[%clk 0:02:59.2]} 10. Bf4 {[%clk 0:02:03.2]} 10... O-O-O {[%clk 0:02:59.7]} 11.
c3 {[%clk 0:01:29]} 11... Rde8 {[%clk 0:02:51.2]} 12. Qe4 {[%clk 0:01:16.5]}
12... Qb5 {[%clk 0:02:45.1]} 13. Be2 {[%clk 0:00:08.6]} 13... Bd5 {[%clk
0:02:36.8]} 14. Qf5+ {[%clk 0:00:06.5]} 14... Kb8 {[%clk 0:02:30.1]} 15. O-O
{[%clk 0:00:07.5]} 15... Qxb2 {[%clk 0:02:04.1]} 16. Qxd5 {[%clk 0:00:06.1]}
16... Qxe2 {[%clk 0:02:04.2]} 17. Rfe1 {[%clk 0:00:06.6]} 17... Qc2 {[%clk
0:02:02.7]} 18. Qd7 {[%clk 0:00:04.8]} 18... Ka8 {[%clk 0:01:32.2]} 19. Qxc7
{[%clk 0:00:03.9]} 19... Bc5 {[%clk 0:01:31.1]} 20. Rf1 {[%clk 0:00:03.2]} 20...
Re7 {[%clk 0:01:26.4]} 0-1